lending/lending_fUSD_20250516
["ID","MTS","AMOUNT","RATE_DAILY","PERIOD"]
[361268155,1747407044423,-5214.43714511,0.00015227,2]
[361268156,1747407044432,-188.02,0.00015231,2]
[361268157,1747407044442,-250.0,0.00015246,2]
[361268158,1747407044452,-334.2,0.0001531,2]
[361268159,1747407044461,-390.78,0.0001531,2]
[361268160,1747407044470,-3796.13,0.0001531,2]
[361268161,1747407044479,-1322.21,0.0001531,2]
[361268162,1747407044488,-499.99,0.0001531,2]
[361268163,1747407044497,-4165.04,0.0001531,2]
[361268164,1747407044506,-150.99,0.0001531,2]
[361268165,1747407044516,-2852.25,0.0001531,2]
[361268166,1747407044525,-299.99,0.0001531,2]
[361268167,1747407044535,-9999.99,0.0001531,2]
[361268168,1747407044544,-1928.3,0.0001531,2]
[361268169,1747407044553,-999.99,0.0001531,2]
[361268170,1747407044563,-1223.83,0.0001531,2]
[361268171,1747407044572,-150.99,0.0001531,2]
[361268172,1747407044582,-9999.99,0.0001531,2]
[361268173,1747407044591,-2021.77777328,0.0001534,2]
[361268174,1747407044600,-361.28,0.00015369,2]
[361268175,1747407044610,-340.01,0.00015396,2]
[361268176,1747407044619,-4000.0,0.00015419,2]
[361268177,1747407044628,-5214.43714511,0.00015559,2]
[361268178,1747407044637,-166.62,0.0001565,2]
[361268179,1747407044646,-151.0,0.00015657,2]
[361268180,1747407044655,-719.52358209,0.00015657,2]
[361268181,1747407044665,-719.04747942,0.00015657,2]
[361268182,1747407044674,-207.4,0.00015657,2]
[361268183,1747407044684,-805.50747721,0.00015688,7]
[361268184,1747407044693,-792.56,0.000157,2]
[361268185,1747407044702,-792.56,0.000157,2]
[361268186,1747407044711,-792.56,0.000157,2]
[361268187,1747407044720,-792.56,0.000157,2]
[361268188,1747407044729,-792.56,0.000157,2]
[361268189,1747407044739,-900.0,0.000157,5]
[361268190,1747407044747,-2021.77777328,0.000157,2]
[361268191,1747407044756,-170.0,0.00015724,2]
[361268192,1747407044766,-170.0,0.00015724,2]
[361268193,1747407044775,-170.01,0.00015724,2]
[361268194,1747407044786,-201.56666201,0.00015767,2]
[361268195,1747407044796,-1800.0,0.000158,5]
[361268196,1747407044805,-5214.43714511,0.00015891,2]
[361268197,1747407044814,-2700.0,0.000159,5]
[361268198,1747407044823,-600.0,0.00016,2]
[361268199,1747407044832,-2021.77777328,0.0001606,2]
[361268200,1747407044842,-565.25,0.00016061,2]
[361268201,1747407044853,-150.0,0.00016078,2]
[361268202,1747407044863,-5214.43714511,0.00016222,2]
[361268203,1747407044872,-399.12,0.00016253,2]
[361268204,1747407044882,-837.0,0.00016297,2]
[361268205,1747407044890,-1147.0,0.00016297,2]
[361268206,1747407044900,-199.00321797,0.00016338,2]
[361268207,1747407044909,-201.56666201,0.00016389,2]
[361268208,1747407044919,-153.67080794,0.00016405,2]
[361268209,1747407044930,-29793.12,0.00016412,2]
[361268210,1747407044940,-2021.77777328,0.0001642,2]
[361268211,1747407044953,-1702.561,0.00016423,2]
[361268212,1747407044962,-170.534,0.00016426,2]
[361268213,1747407044971,-594.0,0.00016438,2]
[361268214,1747407044980,-151.0,0.00016438,2]
[361268215,1747407044990,-151.0,0.00016438,2]
[361268216,1747407044999,-254.39111517,0.00016438,2]
[361268217,1747407045008,-151.0,0.00016438,2]
[361268218,1747407045017,-500.48395875,0.00016438,2]
[361268219,1747407045026,-400.0,0.00016438,2]
[361268220,1747407045036,-400.0,0.00016438,2]
[361268221,1747407045045,-400.0,0.00016438,2]
[361268222,1747407045055,-151.0,0.00016438,2]
[361268223,1747407045064,-400.0,0.00016438,2]
[361268224,1747407045073,-400.0,0.00016438,2]
[361268225,1747407045081,-400.0,0.00016438,2]
[361268226,1747407045090,-400.0,0.00016438,2]
[361268227,1747407045099,-151.0,0.00016438,2]
[361268228,1747407045107,-482.01410255,0.00016438,2]
[361268229,1747407045116,-1124.97,0.00016438,2]
[361268230,1747407045125,-400.0,0.00016438,2]
[361268231,1747407045136,-400.0,0.00016438,2]
[361268232,1747407045146,-400.0,0.00016438,2]
[361268233,1747407045155,-400.0,0.00016438,2]
[361268234,1747407045164,-158.368176,0.00016438,2]
[361268235,1747407045173,-400.0,0.00016438,2]
[361268236,1747407045183,-400.0,0.00016438,2]
[361268237,1747407045192,-400.0,0.00016438,2]
[361268238,1747407045201,-400.0,0.00016438,2]
[361268239,1747407045211,-500.45057889,0.00016438,2]
[361268240,1747407045220,-400.0,0.00016438,2]
[361268241,1747407045230,-400.0,0.00016438,2]
[361268243,1747407045239,-400.0,0.00016438,2]
[361268244,1747407045249,-400.0,0.00016438,2]
[361268245,1747407045258,-568.45,0.00016438,2]
[361268246,1747407045267,-151.0,0.00016438,2]
[361268247,1747407045277,-400.0,0.00016438,2]
[361268248,1747407045287,-400.0,0.00016438,2]
[361268249,1747407045297,-1269.82,0.00016438,2]
[361268250,1747407045306,-400.0,0.00016438,2]
[361268251,1747407045315,-400.0,0.00016438,2]
[361268252,1747407045325,-192.22643421,0.00016438,2]
[361268253,1747407045334,-400.0,0.00016438,2]
[361268254,1747407045344,-400.0,0.00016438,2]
[361268255,1747407045353,-400.0,0.00016438,2]
[361268256,1747407045363,-400.0,0.00016438,2]
[361268257,1747407045371,-400.0,0.00016438,2]
[361268258,1747407045381,-400.0,0.00016438,2]
[361268259,1747407045390,-662.9,0.00016438,2]
[361268260,1747407045400,-540.6196569,0.00016438,2]
[361268261,1747407045408,-400.0,0.00016438,2]
[361268262,1747407045418,-461.73,0.00016438,2]
[361268263,1747407045427,-400.0,0.00016438,2]
[361268264,1747407045436,-293.22197007,0.00016438,2]
[361268265,1747407045446,-400.0,0.00016438,2]
[361268266,1747407045455,-400.0,0.00016438,2]
[361268267,1747407045464,-782.05,0.00016438,2]
[361268268,1747407045473,-400.0,0.00016438,2]
[361268269,1747407045482,-152.781115,0.00016438,2]
[361268270,1747407045491,-281.65632626,0.00016438,2]
[361268271,1747407045766,-406.86,0.00016438,2]
[361268272,1747407045776,-400.0,0.00016438,2]
[361268273,1747407045786,-400.0,0.00016438,2]
[361268274,1747407045795,-400.0,0.00016438,2]
[361268275,1747407045804,-400.0,0.00016438,2]
[361268276,1747407045814,-400.0,0.00016438,2]
[361268277,1747407045823,-400.0,0.00016438,2]
[361268278,1747407045832,-488.28,0.00016438,2]
[361268279,1747407045841,-400.0,0.00016438,2]
[361268280,1747407045851,-400.0,0.00016438,2]
[361268281,1747407045860,-400.0,0.00016438,2]
[361268282,1747407045869,-400.0,0.00016438,2]
[361268283,1747407045879,-400.0,0.00016438,2]
[361268284,1747407045888,-513.37,0.00016438,2]
[361268285,1747407045897,-400.0,0.00016438,2]
[361268286,1747407045907,-400.0,0.00016438,2]
[361268287,1747407045916,-400.0,0.00016438,2]
[361268288,1747407045925,-400.0,0.00016438,2]
[361268289,1747407045934,-400.0,0.00016438,2]
[361268290,1747407045943,-400.0,0.00016438,2]
[361268291,1747407045952,-400.0,0.00016438,2]
[361268292,1747407045961,-400.0,0.00016438,2]
[361268293,1747407045971,-400.0,0.00016438,2]
[361268294,1747407045979,-400.0,0.00016438,2]
[361268295,1747407045988,-400.0,0.00016438,2]
[361268296,1747407045997,-400.0,0.00016438,2]
[361268297,1747407046007,-400.0,0.00016438,2]
[361268298,1747407046015,-400.0,0.00016438,2]
[361268299,1747407046024,-400.0,0.00016438,2]
[361268300,1747407046033,-400.0,0.00016438,2]
[361268301,1747407046042,-400.0,0.00016438,2]
[361268302,1747407046051,-151.0,0.00016438,2]
[361268303,1747407046061,-981.14,0.00016438,2]
[361268304,1747407046070,-400.0,0.00016438,2]
[361268305,1747407046079,-582.53,0.00016438,2]
[361268306,1747407046088,-400.0,0.00016438,2]
[361268307,1747407046097,-1000.0,0.00016438,2]
[361268308,1747407046106,-400.0,0.00016438,2]
[361268309,1747407046115,-400.0,0.00016438,2]
[361268310,1747407046124,-400.0,0.00016438,2]
[361268311,1747407046133,-400.0,0.00016438,2]
[361268312,1747407046144,-868.33,0.00016438,2]
[361268313,1747407046153,-400.0,0.00016438,2]
[361268314,1747407046162,-427.29,0.00016438,2]
[361268315,1747407046171,-400.0,0.00016438,2]
[361268316,1747407046180,-715.87,0.00016438,2]
[361268317,1747407046190,-400.0,0.00016438,2]
[361268318,1747407046199,-416.74,0.00016438,2]
[361268319,1747407046209,-400.0,0.00016438,2]
[361268320,1747407046218,-597.74,0.00016438,2]
[361268321,1747407046228,-400.0,0.00016438,2]
[361268322,1747407046238,-400.0,0.00016438,2]
[361268323,1747407046247,-719.94,0.00016438,2]
[361268324,1747407046258,-400.0,0.00016438,2]
[361268325,1747407046268,-400.0,0.00016438,2]
[361268326,1747407046278,-400.0,0.00016438,2]
[361268327,1747407046289,-400.0,0.00016438,2]
[361268328,1747407046298,-381.67546432,0.00016438,2]
[361268329,1747407046308,-400.0,0.00016438,2]
[361268330,1747407046318,-400.0,0.00016438,2]
[361268331,1747407046327,-512.98,0.00016438,2]
[361268332,1747407046336,-400.0,0.00016438,2]
[361268333,1747407046345,-400.0,0.00016438,2]
[361268334,1747407046356,-400.0,0.00016438,2]
[361268335,1747407046366,-151.0,0.00016438,2]
[361268336,1747407046376,-400.0,0.00016438,2]
[361268337,1747407046386,-151.0,0.00016438,2]
[361268338,1747407046395,-491.96,0.00016438,2]
[361268339,1747407046405,-400.0,0.00016438,2]
[361268340,1747407046414,-400.0,0.00016438,2]
[361268341,1747407046423,-400.0,0.00016438,2]
[361268342,1747407046432,-400.0,0.00016438,2]
[361268343,1747407046441,-400.0,0.00016438,2]
[361268344,1747407046450,-151.0,0.00016438,2]
[361268345,1747407046460,-151.0,0.00016438,2]
[361268346,1747407046470,-400.0,0.00016438,2]
[361268347,1747407046479,-290.43329233,0.00016438,2]
[361268348,1747407046489,-400.84,0.00016438,2]
[361268349,1747407046498,-488.07,0.00016438,2]
[361268350,1747407046508,-400.0,0.00016438,2]
[361268351,1747407046517,-400.0,0.00016438,2]
[361268352,1747407046527,-584.08,0.00016438,2]
[361268353,1747407046538,-400.0,0.00016438,2]
[361268354,1747407046548,-400.0,0.00016438,2]
[361268355,1747407046558,-400.0,0.00016438,2]
[361268356,1747407046567,-400.0,0.00016438,2]
[361268357,1747407046576,-843.69,0.00016438,2]
[361268358,1747407046589,-400.0,0.00016438,2]
[361268359,1747407046598,-725.55,0.00016438,2]
[361268360,1747407046608,-171.11193594,0.00016438,2]
[361268361,1747407046617,-400.0,0.00016438,2]
[361268362,1747407046626,-492.63,0.00016438,2]
[361268363,1747407046635,-400.0,0.00016438,2]
[361268364,1747407046645,-400.0,0.00016438,2]
[361268365,1747407046654,-400.0,0.00016438,2]
[361268366,1747407046663,-417.69,0.00016438,2]
[361268367,1747407046673,-185.30034619,0.00016438,2]
[361268368,1747407046682,-1342.92,0.00016438,2]
[361268369,1747407046692,-400.0,0.00016438,2]
[361268370,1747407046701,-151.0,0.00016438,2]
[361268371,1747407046710,-152.512617,0.00016438,2]
[361268372,1747407046720,-582.06,0.00016438,2]
[361268373,1747407046730,-400.0,0.00016438,2]
[361268374,1747407046739,-400.0,0.00016438,2]
[361268375,1747407046749,-400.0,0.00016438,2]
[361268376,1747407046759,-2000.0,0.00016438,2]
[361268377,1747407046768,-400.0,0.00016438,2]
[361268378,1747407046778,-552.2,0.00016438,2]
[361268379,1747407046787,-355.543243,0.00016438,2]
[361268380,1747407046796,-400.0,0.00016438,2]
[361268381,1747407046806,-625.04,0.00016438,2]
[361268382,1747407046816,-151.0,0.00016438,2]
[361268383,1747407046826,-680.01,0.00016438,2]
[361268384,1747407046835,-400.0,0.00016438,2]
[361268385,1747407046845,-400.0,0.00016438,2]
[361268386,1747407046858,-400.0,0.00016438,2]
[361268387,1747407046867,-400.0,0.00016438,2]
[361268388,1747407046877,-612.03,0.00016438,2]
[361268389,1747407046886,-400.0,0.00016438,2]
[361268390,1747407046897,-400.0,0.00016438,2]
[361268391,1747407046906,-400.0,0.00016438,2]
[361268392,1747407046916,-400.0,0.00016438,2]
[361268393,1747407046926,-400.0,0.00016438,2]
[361268394,1747407046936,-400.0,0.00016438,2]
[361268395,1747407046945,-400.0,0.00016438,2]
[361268396,1747407046954,-400.0,0.00016438,2]
[361268397,1747407046964,-400.0,0.00016438,2]
[361268398,1747407046974,-400.0,0.00016438,2]
[361268399,1747407046983,-647.35,0.00016438,2]
[361268400,1747407046992,-400.0,0.00016438,2]
[361268401,1747407047001,-400.0,0.00016438,2]
[361268402,1747407047010,-400.0,0.00016438,2]
[361268403,1747407047020,-400.0,0.00016438,2]
[361268404,1747407047030,-151.0,0.00016438,2]
[361268405,1747407047040,-417.6209595,0.00016438,2]
[361268406,1747407047050,-400.0,0.00016438,2]
[361268407,1747407047059,-400.0,0.00016438,2]
[361268408,1747407047069,-671.47,0.00016438,2]
[361268409,1747407047078,-400.0,0.00016438,2]
[361268410,1747407047088,-400.0,0.00016438,2]
[361268411,1747407047098,-151.0,0.00016438,2]
[361268412,1747407047107,-400.0,0.00016438,2]
[361268413,1747407047117,-400.0,0.00016438,2]
[361268414,1747407047126,-400.0,0.00016438,2]
[361268415,1747407047136,-454.19,0.00016438,2]
[361268416,1747407047146,-797.02,0.00016438,2]
[361268417,1747407047156,-599.4,0.00016438,2]
[361268418,1747407047165,-400.0,0.00016438,2]
[361268419,1747407047175,-400.0,0.00016438,2]
[361268420,1747407047185,-294.98781008,0.00016438,2]
[361268421,1747407047195,-400.0,0.00016438,2]
[361268422,1747407047205,-400.0,0.00016438,2]
[361268423,1747407047215,-172.63659407,0.00016438,2]
[361268424,1747407047224,-400.0,0.00016438,2]
[361268425,1747407047234,-417.28,0.00016438,2]
[361268426,1747407047243,-400.0,0.00016438,2]
[361268427,1747407047253,-261.76762488,0.00016438,2]
[361268428,1747407047263,-400.0,0.00016438,2]
[361268429,1747407047272,-1319.42,0.00016438,2]
[361268430,1747407047282,-449.41,0.00016438,2]
[361268431,1747407047292,-400.0,0.00016438,2]
[361268432,1747407047302,-400.0,0.00016438,2]
[361268433,1747407047311,-400.0,0.00016438,2]
[361268434,1747407047321,-400.0,0.00016438,2]
[361268435,1747407047330,-400.0,0.00016438,2]
[361268436,1747407047339,-1774.03,0.00016438,2]
[361268437,1747407047348,-400.0,0.00016438,2]
[361268438,1747407047358,-513.62379465,0.00016438,2]
[361268439,1747407047367,-151.0,0.00016438,2]
[361268440,1747407047376,-400.0,0.00016438,2]
[361268441,1747407047385,-400.0,0.00016438,2]
[361268442,1747407047394,-400.0,0.00016438,2]
[361268443,1747407047404,-400.0,0.00016438,2]
[361268444,1747407047414,-545.32,0.00016438,2]
[361268445,1747407047423,-400.0,0.00016438,2]
[361268446,1747407047432,-662.02,0.00016438,2]
[361268447,1747407047442,-494.41,0.00016438,2]
[361268448,1747407047451,-533.38,0.00016438,2]
[361268449,1747407047461,-400.0,0.00016438,2]
[361268450,1747407047470,-400.0,0.00016438,2]
[361268451,1747407047479,-400.0,0.00016438,2]
[361268452,1747407047489,-617.35,0.00016438,2]
[361268453,1747407047498,-844.46,0.00016438,2]
[361268454,1747407047507,-157.77476,0.00016438,2]
[361268455,1747407047516,-977.53,0.00016438,2]
[361268456,1747407047525,-1706.69,0.00016438,2]
[361268457,1747407047536,-400.0,0.00016438,2]
[361268458,1747407047544,-400.0,0.00016438,2]
[361268459,1747407047553,-400.0,0.00016438,2]
[361268460,1747407047563,-400.0,0.00016438,2]
[361268461,1747407047573,-400.0,0.00016438,2]
[361268462,1747407047581,-455.69382131,0.00016438,2]
[361268463,1747407047590,-691.74,0.00016438,2]
[361268464,1747407047601,-1098.82,0.00016438,2]
[361268465,1747407047610,-511.36,0.00016438,2]
[361268466,1747407047619,-400.0,0.00016438,2]
[361268467,1747407047629,-400.0,0.00016438,2]
[361268468,1747407047640,-400.0,0.00016438,2]
[361268469,1747407047649,-596.79,0.00016438,2]
[361268470,1747407047658,-400.0,0.00016438,2]
[361268471,1747407047668,-400.0,0.00016438,2]
[361268472,1747407047677,-151.0,0.00016438,2]
[361268473,1747407047686,-400.0,0.00016438,2]
[361268474,1747407047695,-400.0,0.00016438,2]
[361268475,1747407047704,-400.0,0.00016438,2]
[361268476,1747407047713,-587.18,0.00016438,2]
[361268477,1747407047723,-962.89,0.00016438,2]
[361268478,1747407047732,-400.0,0.00016438,2]
[361268479,1747407047742,-400.0,0.00016438,2]
[361268480,1747407047751,-400.0,0.00016438,2]
[361268481,1747407047761,-342.06382228,0.00016438,2]
[361268482,1747407047770,-400.0,0.00016438,2]
[361268483,1747407047779,-400.0,0.00016438,2]
[361268484,1747407047789,-400.0,0.00016438,2]
[361268485,1747407047799,-565.58,0.00016438,2]
[361268486,1747407047808,-400.0,0.00016438,2]
[361268487,1747407047818,-400.0,0.00016438,2]
[361268488,1747407047828,-400.0,0.00016438,2]
[361268489,1747407047838,-400.0,0.00016438,2]
[361268490,1747407047848,-469.65,0.00016438,2]
[361268491,1747407047860,-1639.42,0.00016438,2]
[361268492,1747407047870,-400.0,0.00016438,2]
[361268493,1747407047880,-400.0,0.00016438,2]
[361268494,1747407047889,-400.0,0.00016438,2]
[361268495,1747407047900,-490.87,0.00016438,2]
[361268496,1747407047909,-400.0,0.00016438,2]
[361268497,1747407047918,-1922.08,0.00016438,2]
[361268498,1747407047928,-400.0,0.00016438,2]
[361268499,1747407047937,-704.32,0.00016438,2]
[361268500,1747407047946,-467.27,0.00016438,2]
[361268501,1747407047956,-400.0,0.00016438,2]
[361268502,1747407047965,-408.83,0.00016438,2]
[361268503,1747407047974,-966.97,0.00016438,2]
[361268504,1747407047984,-400.0,0.00016438,2]
[361268505,1747407047993,-400.0,0.00016438,2]
[361268506,1747407048002,-400.0,0.00016438,2]
[361268507,1747407048011,-400.0,0.00016438,2]
[361268508,1747407048020,-431.17,0.00016438,2]
[361268509,1747407048030,-573.06,0.00016438,2]
[361268510,1747407048040,-1107.43,0.00016438,2]
[361268511,1747407048050,-400.0,0.00016438,2]
[361268512,1747407048059,-400.0,0.00016438,2]
[361268513,1747407048069,-981.16,0.00016438,2]
[361268514,1747407048079,-1472.72,0.00016438,2]
[361268515,1747407048088,-926.71,0.00016438,2]
[361268516,1747407048098,-400.0,0.00016438,2]
[361268517,1747407048108,-151.0,0.00016438,2]
[361268518,1747407048117,-218.498951,0.00016438,2]
[361268519,1747407048127,-400.0,0.00016438,2]
[361268520,1747407048136,-541.7,0.00016438,2]
[361268521,1747407048145,-868.65,0.00016438,2]
[361268522,1747407048155,-218.498951,0.00016438,2]
[361268523,1747407048164,-603.9,0.00016438,2]
[361268524,1747407048173,-400.0,0.00016438,2]
[361268525,1747407048183,-151.0,0.00016438,2]
[361268526,1747407048191,-460.66,0.00016438,2]
[361268527,1747407048201,-151.0,0.00016438,2]
[361268528,1747407048210,-400.0,0.00016438,2]
[361268529,1747407048220,-789.12,0.00016438,2]
[361268530,1747407048231,-1138.34,0.00016438,2]
[361268531,1747407048241,-400.0,0.00016438,2]
[361268532,1747407048250,-400.0,0.00016438,2]
[361268533,1747407048260,-400.0,0.00016438,2]
[361268534,1747407048270,-665.65,0.00016438,2]
[361268535,1747407048280,-400.0,0.00016438,2]
[361268536,1747407048293,-458.17921892,0.00016438,2]
[361268537,1747407048303,-400.0,0.00016438,2]
[361268538,1747407048313,-400.0,0.00016438,2]
[361268539,1747407048323,-605.2,0.00016438,2]
[361268540,1747407048332,-1095.86,0.00016438,2]
[361268541,1747407048341,-1302.11,0.00016438,2]
[361268542,1747407048351,-400.0,0.00016438,2]
[361268543,1747407048361,-873.84,0.00016438,2]
[361268544,1747407048370,-825.95,0.00016438,2]
[361268545,1747407048379,-400.0,0.00016438,2]
[361268546,1747407048389,-520.27,0.00016438,2]
[361268547,1747407048399,-688.29,0.00016438,2]
[361268548,1747407048409,-400.0,0.00016438,2]
[361268549,1747407048418,-400.0,0.00016438,2]
[361268550,1747407048428,-532.06,0.00016438,2]
[361268551,1747407048437,-929.36,0.00016438,2]
[361268552,1747407048447,-503.79,0.00016438,2]
[361268553,1747407048457,-400.0,0.00016438,2]
[361268554,1747407048466,-400.0,0.00016438,2]
[361268555,1747407048475,-674.82,0.00016438,2]
[361268556,1747407048485,-359.92344529,0.00016438,2]
[361268557,1747407048494,-400.84108858,0.00016438,2]
[361268558,1747407048504,-400.28,0.00016438,2]
[361268559,1747407048513,-400.0,0.00016438,2]
[361268560,1747407048522,-400.0,0.00016438,2]
[361268561,1747407048532,-437.55,0.00016438,2]
[361268562,1747407048543,-430.39,0.00016438,2]
[361268563,1747407048553,-450.02,0.00016438,2]
[361268564,1747407048562,-970.7,0.00016438,2]
[361268565,1747407048572,-464.54,0.00016438,2]
[361268566,1747407048581,-400.0,0.00016438,2]
[361268567,1747407048591,-400.0,0.00016438,2]
[361268568,1747407048601,-923.7,0.00016438,2]
[361268569,1747407048610,-932.81,0.00016438,2]
[361268570,1747407048619,-1771.23,0.00016438,2]
[361268571,1747407048628,-400.0,0.00016438,2]
[361268572,1747407048638,-653.08,0.00016438,2]
[361268573,1747407048648,-920.61,0.00016438,2]
[361268574,1747407048658,-400.0,0.00016438,2]
[361268575,1747407048667,-737.33,0.00016438,2]
[361268576,1747407048677,-400.0,0.00016438,2]
[361268577,1747407048686,-400.0,0.00016438,2]
[361268578,1747407048696,-400.0,0.00016438,2]
[361268579,1747407048706,-1538.78,0.00016438,2]
[361268580,1747407048716,-400.0,0.00016438,2]
[361268581,1747407048725,-401.28900843,0.00016438,2]
[361268582,1747407048734,-692.06,0.00016438,2]
[361268583,1747407048744,-400.0,0.00016438,2]
[361268584,1747407048754,-560.02,0.00016438,2]
[361268585,1747407048763,-729.07,0.00016438,2]
[361268586,1747407048773,-402.93322443,0.00016438,2]
[361268587,1747407048782,-400.0,0.00016438,2]
[361268588,1747407048793,-729.09,0.00016438,2]
[361268589,1747407048802,-400.0,0.00016438,2]
[361268590,1747407048812,-893.33,0.00016438,2]
[361268591,1747407048821,-1050.23,0.00016438,2]
[361268592,1747407048830,-400.0,0.00016438,2]
[361268593,1747407048840,-400.0,0.00016438,2]
[361268594,1747407048850,-400.0,0.00016438,2]
[361268595,1747407048863,-400.0,0.00016438,2]
[361268596,1747407048872,-998.85,0.00016438,2]
[361268597,1747407048881,-1832.78,0.00016438,2]
[361268598,1747407048890,-400.0,0.00016438,2]
[361268599,1747407048901,-400.0,0.00016438,2]
[361268600,1747407048911,-536.91,0.00016438,2]
[361268601,1747407048920,-454.81,0.00016438,2]
[361268602,1747407048930,-1786.8,0.00016438,2]
[361268603,1747407048939,-400.0,0.00016438,2]
[361268604,1747407048949,-482.76,0.00016438,2]
[361268605,1747407048958,-400.0,0.00016438,2]
[361268606,1747407048968,-458.96,0.00016438,2]
[361268607,1747407048977,-400.0,0.00016438,2]
[361268608,1747407048986,-400.0,0.00016438,2]
[361268609,1747407048995,-538.45,0.00016438,2]
[361268610,1747407049005,-935.15,0.00016438,2]
[361268611,1747407049014,-400.0,0.00016438,2]
[361268612,1747407049023,-546.76,0.00016438,2]
[361268613,1747407049032,-400.0,0.00016438,2]
[361268614,1747407049041,-400.0,0.00016438,2]
[361268615,1747407049051,-400.0,0.00016438,2]
[361268616,1747407049060,-577.89,0.00016438,2]
[361268617,1747407049069,-400.0,0.00016438,2]
[361268618,1747407049079,-400.0,0.00016438,2]
[361268619,1747407049088,-400.0,0.00016438,2]
[361268620,1747407049098,-400.0,0.00016438,2]
[361268621,1747407049108,-400.0,0.00016438,2]
[361268622,1747407049117,-271.80374034,0.00016438,2]
[361268623,1747407049127,-400.0,0.00016438,2]
[361268624,1747407049136,-517.88,0.00016438,2]
[361268625,1747407049145,-1211.35,0.00016438,2]
[361268626,1747407049155,-400.0,0.00016438,2]
[361268627,1747407049165,-400.0,0.00016438,2]
[361268628,1747407049175,-418.24143918,0.00016438,2]
[361268629,1747407049185,-1145.49,0.00016438,2]
[361268630,1747407049195,-500.0,0.00016438,2]
[361268631,1747407049205,-686.69,0.00016438,2]
[361268632,1747407049215,-500.0,0.00016438,2]
[361268633,1747407049224,-838.18,0.00016438,2]
[361268634,1747407049233,-500.0,0.00016438,2]
[361268635,1747407049243,-500.0,0.00016438,2]
[361268636,1747407049252,-500.0,0.00016438,2]
[361268637,1747407049261,-500.0,0.00016438,2]
[361268638,1747407049271,-500.0,0.00016438,2]
[361268639,1747407049280,-500.0,0.00016438,2]
[361268640,1747407049291,-531.22,0.00016438,2]
[361268641,1747407049300,-500.0,0.00016438,2]
[361268642,1747407049310,-500.0,0.00016438,2]
[361268643,1747407049320,-500.0,0.00016438,2]
[361268644,1747407049329,-500.0,0.00016438,2]
[361268645,1747407049338,-500.0,0.00016438,2]
[361268646,1747407049347,-500.0,0.00016438,2]
[361268647,1747407049356,-500.0,0.00016438,2]
[361268648,1747407049366,-500.0,0.00016438,2]
[361268649,1747407049375,-500.0,0.00016438,2]
[361268650,1747407049385,-500.0,0.00016438,2]
[361268651,1747407049394,-400.0,0.00016438,2]
[361268652,1747407049403,-735.63,0.00016438,2]
[361268653,1747407049413,-412.71,0.00016438,2]
[361268654,1747407049423,-733.62,0.00016438,2]
[361268655,1747407049432,-400.0,0.00016438,2]